fUSD/lending_fUSD_20240521
["ID","MTS","AMOUNT","RATE_DAILY","PERIOD"]
[327705728,1716330666584,-500.0,0.0003315,6]
[327705729,1716330666594,-221.340866,0.00033424,6]
[327705730,1716330666608,-278.659134,0.00033424,6]
[327705731,1716330666617,-500.0,0.00033424,6]
[327705732,1716330666627,-114.34086595,0.00033698,6]
[327705733,1716330666651,-500.0,0.00030684,6]
[327705734,1716330666662,-577.47,0.00032876,6]
[327705735,1716330666672,-385.65913405,0.00033698,6]
[327705736,1716330666681,-500.0,0.00033698,6]
[327705737,1716330666690,-500.0,0.00033972,6]
[327705738,1716330666699,-500.0,0.00033972,6]
[327705739,1716330666709,-500.0,0.00034246,6]
[327705740,1716330666718,-500.0,0.00034246,6]
[327705741,1716330666727,-174.95,0.0003452,6]
[327705742,1716330666737,-231.32197797,0.0003452,6]
[327705743,1716330666746,-726.51841994,0.000355,5]
[327705744,1716330666757,-5502.9202873,0.000355,5]
[327705745,1716330666868,-1402.15872,0.000355,5]
[327705746,1716330666880,-1568.7,0.000355,5]
[327705747,1716330666891,-3300.65,0.000355,5]
[327705748,1716330666903,-1613.59372743,0.000355,5]
[327705749,1716330666923,-577.47,0.0003315,6]
[327705750,1716330666934,-590.522,0.00034141,2]
[327705751,1716330666943,-27978.20529511,0.000355,5]
[327705752,1716330667123,-500.0,0.00030958,6]
[327705753,1716330667133,-1061.0,0.00031141,2]
[327705754,1716330667143,-500.0,0.00031232,6]
[327705755,1716330667152,-470.97985648,0.00031506,6]
[327705756,1716330667161,-635.09,0.0003177,3]
[327705757,1716330667171,-577.47,0.00033424,6]
[327705758,1716330667180,-577.47,0.00033698,6]
[327705759,1716330667190,-112.03046162,0.00033972,6]
[327705760,1716330667216,-465.43953838,0.00033972,6]
[327705761,1716330667225,-1061.0,0.00034141,2]
[327705762,1716330667234,-288.2841816,0.00034246,6]
[327705763,1716330667246,-289.1858184,0.00034246,6]
[327705764,1716330667255,-290.73611602,0.0003452,6]
[327705765,1716330681517,-2000.0,0.00014529,2]
[327705770,1716330835862,8188.37741239,9e-05,2]
[327705771,1716330846841,120001.21638791,0.000118,2]
[327705772,1716330880763,155.42,0.00030468,120]
[327705773,1716330956466,205.0,9.8e-05,2]
[327705774,1716330961954,243.0607711,0.000101,2]
[327705775,1716330962271,150.0,0.00012999,2]
[327705776,1716330965939,1244.37214617,0.00012999,2]
[327705777,1716330998087,8976.73265433,0.0001,2]
[327705778,1716331020442,287.70790298,0.000125,2]
[327705779,1716331037125,209.31165907,0.0001,2]
[327705780,1716331086478,153.19217043,0.000129,2]
[327705781,1716331245815,6265.7317,0.000129,2]
[327705782,1716331396917,155.0,0.00012999,2]
[327705783,1716331400209,155.0,0.00012999,2]
[327705784,1716331407850,498.72799754,0.00012999,2]
[327705785,1716331513590,1076.33140367,0.0001299,2]
[327705786,1716331516394,155.0,0.00012999,2]
[327705787,1716331520049,1331.50722363,0.00012999,2]
[327705788,1716331538492,-24800.86720947,0.00013,2]
[327705789,1716331575354,-6100.86720947,0.00013,2]
[327705790,1716331593301,201.31085316,0.00012935,2]
[327705791,1716331639153,-3166.58828157,0.00013,2]
[327705792,1716331647166,-954.6832365,0.00013,2]
[327705793,1716331651104,-439.07970122,0.00013,2]
[327705797,1716331755120,-2824.22287963,0.00013,2]
[327705801,1716331810546,378.83157048,0.00012999,2]
[327705807,1716331833374,-360383.21072748,0.00013,2]
[327705808,1716331833387,-400.0,0.00013,2]
[327705809,1716331833400,-335.55356,0.00013,2]
[327705810,1716331833412,-14667.3867343,0.00013,2]
[327705811,1716331833425,-23385.69203154,0.00013,2]
[327705812,1716331833439,-24653.68642409,0.00013,2]
[327705813,1716331833451,-10637.29583004,0.00013,2]
[327705814,1716331833676,-888.36762147,0.00013,2]
[327705833,1716331838068,-264.41929814,0.00013,2]
[327705834,1716331838195,-2593.86505234,0.00013,2]
[327705835,1716331838207,-539.84238113,0.00013,2]
[327705836,1716331838220,-1771.52113055,0.00013,2]
[327705837,1716331838875,-34974.0,0.00013,2]
[327705841,1716331840214,-3003.39578334,0.00013,2]
[327705844,1716331840227,-2030.67451524,0.00013,2]
[327705845,1716331840240,-8336.23500001,0.00013,2]
[327705846,1716331840469,-691.31999944,0.00013,2]
[327705847,1716331841370,332.53138128,0.00012999,2]
[327705858,1716331844142,-5318.51798058,0.00013,2]
[327705859,1716331844154,-145526.11828091,0.00013,2]
[327705860,1716331844166,-601.70455603,0.00013,2]
[327705861,1716331844178,-6544.17668736,0.00013,2]
[327705872,1716331849194,-351.2112174,0.00013,2]
[327705873,1716331849206,-1201.95735988,0.00013,2]
[327705874,1716331849217,-1100.8999995,0.00013,2]
[327705875,1716331849228,-1400.542,0.00013,2]
[327705876,1716331854916,1000.0,0.00012999,2]
[327705877,1716331855793,200.0,0.000121,4]
[327705878,1716331856979,10099.90123969,0.00012999,2]
[327705879,1716331857899,500.0,0.000122,4]
[327705881,1716331859996,700.0,0.000123,4]
[327705882,1716331862091,1000.0,0.000124,4]
[327705883,1716331863284,150.5,0.0001999,15]
[327705884,1716331863923,150.5,0.0001998,15]
[327705885,1716331864205,1200.0,0.000125,4]
[327705886,1716331864554,150.5,0.0001997,15]
[327705887,1716331866297,200.0,0.000126,4]
[327705888,1716331867518,19498.47414158,0.00012999,2]
[327705889,1716331868394,200.0,0.000127,4]
[327705890,1716331870493,200.0,0.000128,4]
[327705891,1716331872631,200.0,0.000129,4]
[327705892,1716331914781,2363.11925479,0.00012999,2]
[327705893,1716331934747,935.06004859,0.00012999,2]
[327705894,1716331942590,954.4670422,0.00012999,2]
[327705895,1716331953295,290.46686019,0.00012999,2]
[327705896,1716331955403,1686.041808,0.00012935,2]
[327705897,1716331967373,6465.91533655,0.000129,2]
[327705898,1716331971711,2001.17311596,0.00012999,2]
[327705899,1716331976935,638.5170054,0.00012999,2]
[327705900,1716332151511,2693.40851527,0.00012999,2]
[327705901,1716332175482,1931.85025187,0.000129,2]
[327705902,1716332244199,1430.78897317,0.00012999,2]
[327705903,1716332286044,1800.92183,0.00012999,2]
[327705904,1716332536300,1562.04182776,0.00012723,2]
[327705905,1716332630835,-160.86720947,0.00013,2]
[327705906,1716332632959,-160.86720947,0.00013,2]
[327705907,1716332634253,-160.86720947,0.00013,2]
[327705908,1716332636290,-160.86720947,0.00013,2]
[327705909,1716332658225,551.1046,0.000129,2]
[327705910,1716332673076,47956.45092,0.00012999,2]
[327705911,1716332674915,12085.18197863,0.000129,2]
[327705912,1716332687228,-3000000.0,0.00013,2]
[327705913,1716332688202,818.37489611,0.00012999,2]
[327705914,1716332706567,1202.475661,0.00012935,2]
[327705915,1716332713237,751.19369578,0.00011699,2]
[327705916,1716332746863,43675.81108401,0.000129,2]
[327705917,1716332798529,535.88765417,0.00012999,2]
[327705918,1716332799549,10528.10044356,0.00012999,2]
[327705919,1716332801015,895.38387825,0.00012999,2]
[327705920,1716332801187,18602.51406407,0.00012999,2]
[327705921,1716332802992,3009.22259408,0.00012999,2]
[327705922,1716332803734,2001.17311596,0.00012999,2]
[327705923,1716332804344,2186.8060043,0.00012999,2]
[327705924,1716332804768,155.0,0.00012999,2]
[327705925,1716332806490,870.05657279,0.00012255,2]
[327705926,1716332806948,423.50395095,0.00011699,2]
[327705927,1716332807391,155.0,0.00012999,2]
[327705928,1716332807537,1064.16497992,0.00012999,2]
[327705930,1716332810641,488.97987552,0.00012999,2]
[327705931,1716332811343,803.82734863,0.00012999,2]
[327705932,1716332811658,1214.6689213,0.00012999,2]
[327705933,1716332812022,207.45919939,0.00012999,2]
[327705934,1716332813618,237.37139895,0.00012999,2]
[327705935,1716332825326,803.4540425,0.00012999,2]
[327705936,1716332828199,-3379.90980432,0.00013,2]
[327705937,1716332837117,-5422.64489186,0.00013,2]
[327705938,1716332841514,184.542155,0.00012935,2]
[327705939,1716332842093,-726.21747367,0.00013,2]
[327705940,1716332843123,256.9319,0.000129,2]
[327705941,1716332843245,-2614.15049311,0.00013,2]
[327705942,1716332849555,4000.0,0.000129,2]
[327705943,1716332898170,2854.4604,0.000129,2]
[327705944,1716332927562,154.59625969,0.000129,2]
[327705949,1716332942296,150.0,0.00012999,2]
[327705959,1716333011493,185.55843489,0.0001299,2]
[327705960,1716333029627,1500.0,0.00012999,2]
[327705970,1716333032635,-5362.08394214,0.00013,2]
[327705971,1716333032648,-21062.1,0.00013,2]
[327705972,1716333032660,-1004.74982487,0.00013,2]
[327705973,1716333032672,-2416.04156294,0.00013,2]
[327705974,1716333032683,-1752.06,0.00013,2]
[327705975,1716333032696,-3814.24546861,0.00013,2]
[327705976,1716333032710,-9767.30991082,0.00013,2]
[327705977,1716333032724,-11469.9047608,0.00013,2]
[327705978,1716333033099,1000.0,0.00012999,2]
[327706007,1716333038757,-5000.0,0.00013,2]
[327706010,1716333038769,-32215.36229083,0.00013,2]
[327706013,1716333038780,-1009.1586284,0.00013,2]
[327706015,1716333038791,-5640.52606362,0.00013,2]
[327706017,1716333038802,-327.9420034,0.00013,2]
[327706019,1716333038814,-5098.26030403,0.00013,2]
[327706021,1716333038825,-17327.97442883,0.00013,2]
[327706026,1716333041224,-1768.31000014,0.00013,2]
[327706027,1716333041235,-257.6459895,0.00013,2]
[327706047,1716333044396,-1552.16653,0.00013,2]
[327706071,1716333045055,-56831.6983107,0.00013,2]
[327706073,1716333045068,-7514.31650477,0.00013,2]
[327706076,1716333045090,-0.00486953,0.00013,2]
[327706078,1716333045104,-1098.73819662,0.00013,2]
[327706085,1716333046472,-897.58999998,0.00013,2]
[327706086,1716333046485,-29446.05938178,0.00013,2]
[327706087,1716333046496,-67278.00000006,0.00013,2]
[327706088,1716333046508,-117525.28510186,0.00013,2]
[327706095,1716333049341,-30015.87183407,0.00013,2]
[327706097,1716333049353,-11339.37648721,0.00013,2]
[327706098,1716333049364,-32439.39449639,0.00013,2]
[327706100,1716333049375,-2606.014868,0.00013,2]
[327706101,1716333049385,-2825.04658628,0.00013,2]
[327706102,1716333049396,-381.20999999,0.00013,2]
[327706103,1716333049408,-427.0050077,0.00013,2]
[327706104,1716333049418,-6370.17133023,0.00013,2]
[327706105,1716333050886,31556.97758344,0.00012999,2]
[327706106,1716333051348,803.61483511,0.00012999,2]
[327706107,1716333053178,13257.04883607,0.00012999,2]
[327706108,1716333057696,155.0,0.00012999,2]
[327706109,1716333059689,164.39342756,0.00012999,2]
[327706110,1716333059800,355.81530773,0.00012999,2]
[327706111,1716333062275,3863.97202559,0.00012999,2]
[327706112,1716333062442,178.94187128,0.00012999,2]
[327706113,1716333063002,892.95845559,0.00012999,2]
[327706114,1716333066159,243.18749239,0.00012999,2]
[327706115,1716333066981,155.0,0.00012999,2]
[327706116,1716333067347,803.61483511,0.00012999,2]
[327706117,1716333069333,202.1932044,0.00012999,2]
[327706118,1716333071434,343.65261696,0.00012999,2]
[327706119,1716333073436,1686.04842948,0.00012999,2]
[327706120,1716333074484,177.68872852,0.00012999,2]
[327706121,1716333074711,535.58310182,0.00012999,2]
[327706122,1716333081493,339.64882364,0.000129,2]
[327706123,1716333084983,321.75943476,0.00012999,2]
[327706124,1716333089271,4675.52797837,0.00012999,2]
[327706125,1716333099008,383.72460685,0.000129,2]
[327706126,1716333104931,318.24274868,0.00012999,2]
[327706127,1716333112576,384.80972136,0.000129,2]
[327706128,1716333119708,200.0,0.00012836,2]
[327706129,1716333121356,33212.13742784,0.00012999,2]
[327706130,1716333122504,150.0,0.00012999,2]
[327706131,1716333139912,162.16161132,0.000129,2]
[327706132,1716333313729,3500.5052,0.000129,2]
[327706133,1716333316595,13022.37110729,0.0001299,2]
[327706134,1716333332250,2605.01235126,0.00012642,2]
[327706135,1716333344252,602.9867916,0.0001273,2]
[327706136,1716333392777,458.49174,0.0001287,2]
[327706137,1716333482247,300.0,0.00012999,2]
[327706138,1716333542143,6724.2343,0.000129,2]
[327706139,1716333551078,200.0,0.00012836,2]
[327706140,1716333573949,19728.00658117,0.00012999,2]
[327706141,1716333591935,3821.07045448,0.00012999,2]
[327706142,1716333645695,362.19547444,0.00012999,2]
[327706143,1716333662481,150.0,0.00012999,2]
[327706144,1716333665694,362.19547444,0.00012999,2]
[327706145,1716333683706,362.36459367,0.00012999,2]
[327706146,1716333740947,1500.76819,0.0001287,2]
[327706147,1716333897249,385.57678622,0.00031,120]
[327706148,1716333911047,3655.46213742,0.0001287,2]
[327706149,1716333914919,4591.84499284,0.00012987,2]
[327706150,1716333918037,208.68716527,0.00012999,2]
[327706151,1716333918134,1205.94903723,0.00012999,2]
[327706152,1716333920119,326.80688808,0.00012999,2]
[327706153,1716333921939,1381.21503003,0.00012999,2]
[327706154,1716333922048,155.0,0.00012999,2]
[327706155,1716333966965,588.71998655,0.00012999,2]
[327706156,1716333992392,2630.58103779,0.000129,2]
[327706157,1716334025165,-241.5549451,0.00013,2]
[327706158,1716334034163,-701.49553539,0.00013,2]
[327706159,1716334042173,-3333.34543411,0.00013,2]
[327706160,1716334089354,382.07645,0.0001287,2]
[327706163,1716334138009,169.81216375,0.000129,2]
[327706171,1716334202865,150.0,0.000129,2]
[327706172,1716334202975,150.0,0.000129,2]
[327706180,1716334232607,-1916.80238943,0.00013,2]
[327706181,1716334232620,-1178.45951756,0.00013,2]
[327706182,1716334232632,-2256.73584134,0.00013,2]
[327706183,1716334232644,-4611.58520454,0.00013,2]
[327706184,1716334232655,-11876.38226041,0.00013,2]
[327706185,1716334232667,-2275.48656386,0.00013,2]
[327706186,1716334232678,-3469.27001,0.00013,2]
[327706187,1716334232689,-19882.18885696,0.00013,2]
[327706188,1716334232701,-35508.22619812,0.00013,2]
[327706189,1716334232713,-1133.16129937,0.00013,2]
[327706190,1716334232724,-578.5596183,0.00013,2]
[327706191,1716334232736,-72257.7219658,0.00013,2]
[327706192,1716334232748,-305086.30442284,0.00013,2]
[327706197,1716334239403,-75371.11992876,0.00013,2]
[327706198,1716334239414,-1250.0,0.00013,2]
[327706199,1716334239427,-4412.536073,0.00013,2]
[327706200,1716334239879,-7027.0,0.00013,2]
[327706204,1716334239892,-11408.62220436,0.00013,2]
[327706213,1716334240230,-658.090015,0.00013,2]
[327706214,1716334240242,-740.83310956,0.00013,2]
[327706215,1716334240254,-237116.87394025,0.00013,2]
[327706216,1716334240265,-3816.4,0.00013,2]
[327706217,1716334240583,-1522.85247608,0.00013,2]
[327706218,1716334240628,-781.54267756,0.00013,2]
[327706219,1716334240640,-518.72418046,0.00013,2]
[327706220,1716334240652,-2691.58843803,0.00013,2]
[327706221,1716334240663,-4087.80659083,0.00013,2]
[327706238,1716334243020,-15698.5786229,0.00013,2]
[327706239,1716334243878,-4449.9029,0.00013,2]
[327706240,1716334243891,-538303.8659869,0.00013,2]
[327706241,1716334243905,-6790.78450001,0.00013,2]
[327706242,1716334243918,-2986.59681659,0.00013,2]
[327706243,1716334243931,-1137.74093596,0.00013,2]
[327706244,1716334243946,-412.74691942,0.00013,2]
[327706245,1716334243959,-298.93134934,0.00013,2]
[327706251,1716334248810,-8539.06885841,0.00013,2]
[327706252,1716334248826,-16869.73934652,0.00013,2]
[327706253,1716334248840,-5812.9,0.00013,2]
[327706254,1716334248853,-1898.99689921,0.00013,2]
[327706255,1716334248867,-3424.309831,0.00013,2]
[327706256,1716334248880,-1825.79,0.00013,2]
[327706257,1716334248894,-784.50318454,0.00013,2]
[327706258,1716334248907,-43317.2415154,0.00013,2]
[327706259,1716334248921,-6132.54188406,0.00013,2]
[327706260,1716334248935,-500.0,0.00013,2]
[327706261,1716334248948,-3555.70374447,0.00013,2]
[327706262,1716334248962,-574.56699453,0.00013,2]
[327706263,1716334248975,-162923.74588913,0.00013,2]
[327706264,1716334248989,-13241.49106982,0.00013,2]
[327706265,1716334249293,-669.896727,0.00013,2]
[327706266,1716334249306,-2008.00587715,0.00013,2]
[327706267,1716334249319,-1635.12992052,0.00013,2]
[327706268,1716334249332,-10156.1504713,0.00013,2]
[327706269,1716334253225,2362.29532977,0.00012999,2]
[327706270,1716334253459,302.60236657,0.00012999,2]
[327706271,1716334255480,1312.29,0.00012999,2]
[327706272,1716334259786,1046.3835803,0.00012999,2]
[327706273,1716334259825,798.23666088,0.00012999,2]
[327706274,1716334259863,308.12039765,0.00012999,2]
[327706275,1716334259902,43315.61540487,0.00012999,2]
[327706276,1716334260250,256.9319,0.000129,2]
[327706277,1716334260386,1349.46075983,0.00012642,2]
[327706278,1716334261884,475.01434833,0.00012999,2]
[327706279,1716334268337,252.38036724,0.00012999,2]
[327706280,1716334281043,7341.05580611,0.00012999,2]
[327706281,1716334285356,28048.87084514,0.00012999,2]
[327706282,1716334289310,164.54938473,0.00012999,2]
[327706283,1716334289794,5059.88557331,0.00012999,2]
[327706284,1716334294484,2529.94278665,0.00012999,2]
[327706285,1716334296641,1564.60657979,0.00012824,2]
[327706286,1716334299275,1264.97139333,0.00012999,2]
[327706287,1716334304281,632.48569666,0.00012999,2]
[327706288,1716334309310,316.24284833,0.00012999,2]
[327706289,1716334314334,158.12142417,0.00012999,2]
[327706290,1716334320308,158.12142416,0.00012999,2]
[327706291,1716334323815,1291.3552,0.000129,2]
[327706292,1716334344141,1843.00172458,0.000129,2]
[327706293,1716334360301,288.87092879,0.00012869,2]
[327706294,1716334421859,-3256147.4014,0.00013,2]
[327706295,1716334451561,1250.64016,0.0001287,2]
[327706296,1716334469464,13033.38861575,0.00015,10]
[327706297,1716334508998,174.86,0.00030078,120]
[327706298,1716334543312,2885.5228,0.000129,2]
[327706299,1716334562489,150.0,0.00012999,2]
[327706300,1716334601753,225.5003258,0.000129,2]
[327706301,1716334627597,494.0898,0.000129,2]
[327706303,1716334631976,2629.56,0.00012,2]
[327706305,1716334810265,152322.3026942,0.000129,2]
[327706306,1716334816669,735.06371,0.0001287,2]
[327706307,1716334828051,6612.7048,0.000129,2]
[327706308,1716334837707,494981.67176593,0.000129,2]
[327706309,1716335108664,150.0,0.00012986,2]
[327706310,1716335124279,726.90420438,0.00012999,2]
[327706311,1716335142257,484.60280292,0.00012999,2]
[327706312,1716335162285,403.8356691,0.00012999,2]
[327706313,1716335165448,1042.20013,0.0001287,2]
[327706314,1716335184293,210.3983836,0.00012999,2]
[327706315,1716335202394,210.3983836,0.00012999,2]
[327706316,1716335218297,210.3983836,0.00012999,2]
[327706317,1716335229120,-954.70382657,0.00013,2]
[327706318,1716335245365,210.3983836,0.00012999,2]
[327706319,1716335250169,-439.09928607,0.00013,2]
[327706320,1716335263359,210.3983836,0.00012999,2]
[327706321,1716335277349,210.3983836,0.00012999,2]
[327706322,1716335279937,5294.60743978,0.00031,120]
[327706323,1716335305360,210.3983836,0.00012999,2]
[327706328,1716335321461,210.3983836,0.00012999,2]
[327706329,1716335337526,210.3983836,0.00012999,2]
[327706333,1716335357546,210.3983836,0.00012999,2]
[327706337,1716335375534,319.0301786,0.00012999,2]
[327706352,1716335431966,-6637.5486,0.00013,2]
[327706353,1716335431979,-18983.34929084,0.00013,2]
[327706354,1716335431990,-5002.62750254,0.00013,2]
[327706355,1716335432019,-1419.27604247,0.00013,2]
[327706356,1716335432031,-654.28007,0.00013,2]
[327706357,1716335432043,-37338.93522822,0.00013,2]
[327706358,1716335432077,-1084.00000008,0.00013,2]
[327706359,1716335432090,-599797.9155808,0.00013,2]
[327706360,1716335432102,-13748.32483707,0.00013,2]
[327706371,1716335437849,-14060.7,0.00013,2]
[327706372,1716335437955,-2956.11305257,0.00013,2]
[327706373,1716335437966,-602.584341,0.00013,2]
[327706374,1716335437977,-173548.37467283,0.00013,2]
[327706375,1716335438011,-53339.20235388,0.00013,2]
[327706376,1716335438025,-1018.21266674,0.00013,2]
[327706377,1716335438071,-2323.00059162,0.00013,2]
[327706378,1716335438126,-1071.63695737,0.00013,2]
[327706384,1716335440024,-11000.0,0.00013,2]
[327706385,1716335440096,-819.49627046,0.00013,2]
[327706386,1716335440138,-4395.75536144,0.00013,2]
[327706387,1716335440196,-3684.04912018,0.00013,2]
[327706388,1716335440207,-683.919219,0.00013,2]
[327706389,1716335440232,-0.00011373,0.00013,2]
[327706390,1716335440465,-714531.94840909,0.00013,2]
[327706392,1716335443009,-3454.38078348,0.00013,2]
[327706393,1716335443020,-1356.30670095,0.00013,2]
[327706394,1716335443064,-2858.1659423,0.00013,2]
[327706395,1716335443076,-630.87041203,0.00013,2]
[327706396,1716335443121,-2248.24107835,0.00013,2]
[327706397,1716335443195,-1107.35954127,0.00013,2]
[327706398,1716335443206,-1900.50000001,0.00013,2]
[327706399,1716335443217,-451.82668344,0.00013,2]
[327706400,1716335443228,-975.50000002,0.00013,2]
[327706401,1716335443255,-24476.8754026,0.00013,2]
[327706402,1716335443267,-4203.50300215,0.00013,2]
[327706403,1716335443279,-855.62630079,0.00013,2]
[327706404,1716335443291,-352.72799642,0.00013,2]
[327706405,1716335443306,-620.45405556,0.00013,2]
[327706406,1716335443317,-5607.57055296,0.00013,2]
[327706407,1716335443355,-171884.94668286,0.00013,2]
[327706408,1716335443367,-111618.7881495,0.00013,2]
[327706409,1716335443378,-1458.78306831,0.00013,2]
[327706410,1716335443389,-364.60880369,0.00013,2]
[327706411,1716335443412,-23438.8233895,0.00013,2]
[327706412,1716335443423,-1286.61514116,0.00013,2]
[327706413,1716335443434,-775.08045318,0.00013,2]
[327706414,1716335443445,-1973.41752902,0.00013,2]
[327706433,1716335445888,-339.85302779,0.00013,2]
[327706440,1716335445947,-5008.5826878,0.00013,2]
[327706453,1716335446061,-620.53980725,0.00013,2]
[327706471,1716335447918,207.39135552,0.00012999,2]
[327706472,1716335453335,1564.60657979,0.00012848,2]
[327706473,1716335456229,274.11104662,0.00012869,2]
[327706474,1716335457394,2362.29532977,0.00012999,2]
[327706475,1716335457696,1248.26268845,0.00012999,2]
[327706476,1716335460885,155.0,0.00012999,2]
[327706477,1716335460917,516.09860247,0.00012999,2]
[327706478,1716335462491,150.0,0.00012999,2]
[327706479,1716335462580,150.0,0.00012999,2]
[327706480,1716335467855,155.54270939,0.00012999,2]
[327706481,1716335469000,655.82645492,0.00012999,2]
[327706482,1716335469188,1618.3668,0.000129,2]
[327706483,1716335469782,4453.54619577,0.00012999,2]
[327706484,1716335472663,2180.17335597,0.00012999,2]
[327706485,1716335473368,320.88560316,0.00012999,2]
[327706486,1716335473787,263.14041655,0.00012999,2]
[327706487,1716335474182,537.88108423,0.00012999,2]
[327706488,1716335474267,167.58743393,0.00012999,2]
[327706489,1716335475642,3739.77483329,0.00012999,2]
[327706490,1716335475811,4275.39654092,0.00012999,2]
[327706491,1716335476646,155.0,0.00012999,2]
[327706492,1716335477288,2329.28437138,0.00012999,2]
[327706493,1716335478515,1678.54469435,0.00012999,2]
[327706494,1716335478546,252.02181648,0.00012869,2]
[327706495,1716335478817,155.0,0.00012999,2]
[327706496,1716335481042,162.55955692,0.00012999,10]
[327706497,1716335482725,155.0,0.00012999,2]
[327706498,1716335482891,535.35563645,0.00012999,2]
[327706499,1716335483787,803.3483767,0.00012999,2]
[327706500,1716335488090,155.09689004,0.00012999,2]
[327706501,1716335489733,264.05637982,0.00012999,2]
[327706502,1716335499241,2323.32542831,0.00012999,2]
[327706503,1716335501009,155.24241743,0.00012999,2]
[327706504,1716335513348,612.55309,0.0001287,2]
[327706506,1716335541162,151.71405489,0.000129,2]
[327706507,1716335566084,164.23,0.00026005,120]
[327706508,1716335576904,13183.87828386,0.0003,30]
[327706509,1716335673189,1097.02710388,0.000129,2]
[327706510,1716335704161,236.49700446,0.0001299,2]
[327706511,1716335704535,236.49700446,0.0001299,2]
[327706512,1716335704692,236.49700446,0.0001299,2]
[327706513,1716335704857,236.49700446,0.0001299,2]
[327706514,1716335705040,236.49700446,0.0001299,2]
[327706515,1716335705256,236.49700446,0.0001299,2]
[327706516,1716335705409,236.49700446,0.0001299,2]
[327706517,1716335705573,236.49700446,0.0001299,2]
[327706518,1716335705720,236.49700446,0.0001299,2]
[327706519,1716335706180,236.49700446,0.0001299,2]
[327706520,1716335706229,236.49700446,0.0001299,2]
[327706521,1716335706270,236.49700446,0.0001299,2]
[327706522,1716335706426,236.49700446,0.0001299,2]
[327706523,1716335706574,236.49700446,0.0001299,2]
[327706524,1716335706765,236.49700446,0.0001299,2]
[327706525,1716335706960,236.49700446,0.0001299,2]
[327706526,1716335707102,236.49700446,0.0001299,2]
[327706527,1716335707272,236.49700446,0.0001299,2]
[327706528,1716335707451,236.49700446,0.0001299,2]
[327706529,1716335707584,236.49700446,0.0001299,2]
[327706530,1716335707733,236.49700446,0.0001299,2]
[327706531,1716335707923,236.49700446,0.0001299,2]
[327706532,1716335708080,236.49700446,0.0001299,2]
[327706533,1716335708224,236.49700446,0.0001299,2]
[327706534,1716335708375,236.49700446,0.0001299,2]
[327706535,1716335709030,236.49700446,0.0001299,2]
[327706536,1716335709204,236.49700446,0.0001299,2]
[327706537,1716335709357,236.49700446,0.0001299,2]
[327706538,1716335709530,236.49700446,0.0001299,2]
[327706539,1716335709798,236.49700446,0.0001299,2]
[327706540,1716335709842,236.49700446,0.0001299,2]
[327706541,1716335710041,236.49700446,0.0001299,2]
[327706542,1716335710183,236.49700446,0.0001299,2]
[327706543,1716335710350,236.49700446,0.0001299,2]
[327706544,1716335710531,236.49700446,0.0001299,2]
[327706545,1716335710796,236.49700446,0.0001299,2]
[327706546,1716335710943,236.49700446,0.0001299,2]
[327706547,1716335711135,236.49700446,0.0001299,2]
[327706548,1716335711288,236.49700446,0.0001299,2]
[327706549,1716335711442,236.49700446,0.0001299,2]
[327706550,1716335711589,236.49700446,0.0001299,2]
[327706551,1716335711738,236.49700446,0.0001299,2]
[327706552,1716335711934,236.49700446,0.0001299,2]
[327706553,1716335712086,236.49700446,0.0001299,2]
[327706554,1716335712236,236.49700446,0.0001299,2]
[327706555,1716335712403,236.49700446,0.0001299,2]
[327706556,1716335712547,236.49700446,0.0001299,2]
[327706557,1716335712698,236.49700446,0.0001299,2]